Workbook

Sheet Saobraćajnica
B1: 2.2.5.3. ПРЕДРАЧУН РАДОВА
B2: Главашев парк у Смедеревској Паланци
B3: 2.2- Пројекат саобраћајнице
B5: бр. | C5: опис | D5: јед. | E5: количина | F5: јединична | G5: укупно
B6: поз. | C6: радова | D6: мере | F6: цена | G6: динара
C7: 1.Претходни радови | F7: без ПДВ-а | G7: без ПДВ-а
B8: 1.1. | C8: Геодетско обележавање и обнављање трасе. | D8: m' | E8: 462.00 | G8: =F8*E8 -> 0.00
B9: 1.2. | C9: Уклањање постојећег асфалтног застора са ивичњацима и свим елементима и слојевима подлоге и транспорт на депонију. Просечна дебљина d= 15cm | D9: m² | E9: 2,655.00 | G9: =F9*E9 -> 0.00
B10: 1.3. | C10: Уклањање постојећих гранитних коцки 10х10х10 са утоваром и транспортом на депонију | D10: m² | E10: 296.00 | G10: 0.00
B11: 1.4. | C11: Демонтажа и уклањање постојећих ђубријера за рециклажни отпад и транспорт на депонију. | D11: ком. | E11: 15 | G11: 0.00
B12: 1.5. | C12: Уклањање самосталних клупа и транспорт на место које одреди Инвеститор. | D12: ком. | E12: 15 | G12: 0.00
B13: 1.6. | C13: Уклањање бетонских жардињера и транспорт на место које одреди Инвеститор. | D13: ком. | E13: 9 | G13: 0.00
B14: 1.7. | C14: Уклањање бетонског стола са клупама за шах. | D14: ком. | E14: 1 | G14: 0.00
B15: 1.8. | C15: Рушење бетонских степеница и транспорт на депонију. | D15: m³ | E15: 5.00 | G15: 0.00
B16: 1.9. | C16: Машински утовар и транспорт на депонију земљаног материјала из цвећњака- жардињера. | D16: m³ | E16: 5.00 | G16: 0.00
B17: 1.10. | C17: Демонтажа и уклањање металне ограде анкерисане у бетонску подлогу висине 50 cm и транспорт на место које одреди Инвеститор. | D17: m' | E17: 30 | G17: 0.00
B18: 1.11. | C18: Уклањање постојећих информативних знакова са утоваром и транспортом на место које одреди Инвеститор. | D18: ком. | E18: 1 | G18: 0.00
B19: 1.12. | C19: Нивелисање постојећих шахти са заменом шахт поклопаца. Позиција обухвата све набавке опреме и материјала и уградњу. | D19: ком. | E19: 4 | G19: 0.00
B20: 1.13. | C20: Рушење постојеће фонтане са свим елементима, слојевима конструкције и свим инсталацијама са површина предвиђених пројектом. | D20: m³ | E20: 50.00 | G20: 0.00
B21: 1.14. | C21: Машинско опсецање ивица постојећег асфалта, ради уклапања. Позиција обухвата: опсецање, чишћење, утовар шута и транспорт на депонију. | D21: m' | E21: 125 | G21: 0.00
B22: 1.15. | C22: Ручни ископ земље за одређивање тачног положаја подземних инсталација. | D22: m³ | E22: 2.00 | G22: =F22*E22 -> 0.00
B23: 1.16. | C23: Заштита постојећих инсталација бетоном C25/30 (МB30) са МА Ø6mm, d=0,10m. | D23: m³ | E23: 2.00 | G23: 0.00
F24: свега 1: | G24: =SUM(G8:G23) -> 0.00
C25: 2.Доњи строј
B26: 2.1. | C26: Машински ископ дела постојеће коловозне конструкције и материјала са утоваром и транспортом на депонију. | D26: m³ | E26: =(2951+222)*0.43 -> 1,364.39 | G26: =F26*E26 -> 0.00
B27: 2.2. | C27: Уређење постељице на пешачкој стази, Мs=30MPa | D27: m² | E27: 2,951.00 | G27: =F27*E27 -> 0.00
B28: 2.3. | C28: Замена постељице шљунком или песком, d=30cm, уколико је Ms< 30MPa или ЦБР< 5%. Постићи минимално Ms= 30MPа. | D28: m³ | E28: 443.00 | G28: =F28*E28 -> 0.00
B29: 2.4. | C29: Набавка, транспорт и постављање геотекстила | D29: m² | E29: 3,173.00 | G29: =F29*E29 -> 0.00
B30: 2.5. | C30: Машинско разастирање, планирање и збијање ископаног материјала и земље на депонији без ваљања. | D30: m³ | E30: =E26 -> 1,364.39 | G30: =F30*E30 -> 0.00
F31: свега 2: | G31: =SUM(G26:G30) -> 0.00
C32: 3.Горњи строј
B33: 3.1. | C33: Набавка, транспорт и уградња тампона од дробљеног каменог агрегата 0- 63mm (мин d=20cm, Мs=50MPa): | D33: m³ | E33: =(2951+222)*0.2 -> 634.60 | G33: =F33*E33 -> 0.00
B34: 3.2. | C34: Набавка, транспорт и уградња тампона од дробљеног каменог агрегата 0-31,5mm (d=10cm, Мs=60MPa): | D34: m³ | E34: =(2951+222)*0.1 -> 317.30 | G34: =F34*E34 -> 0.00
B35: 3.3. | C35: Набавка, транспорт и уградња сивих вибропресованих ивичњака у стандардно бетонско раме C16/ 20 на слоју чистоће d= 10cm.
B36: - | C36: 8/ 20 (без надвишења у односу на бехатон) | D36: m' | E36: 950.00 | G36: =F36*E36 -> 0.00
B37: - | C37: 12/ 18 | D37: m' | E37: 140.00 | G37: 0.00
B38: 3.4. | C38: Уградња бехатон плоча типа комбо макс, формата мултиформат или сл., фугне 0-2mm, на слоју песка фракције 4- 8mm, d= 5cm. Бехатон плоча је двослојна са завршном обрадом од кварцног песка са различитим нијансама боја - колормикс. Цена обухвата све набавке, транспорт и уградњу.
B39: - | C39: d = 6 cm | D39: m² | E39: 1,255.00 | G39: 0.00
B40: - | C40: d = 8 cm | D40: m² | E40: 1,696.00 | G40: 0.00
B41: 3.5. | C41: Набавка, транспорт и уградња растер бетон- трава плоча d= 10cm, на слоју песка, фракције 4- 8mm, d= 5cm. Рупе попунити мешавином хумуса и семена траве по 50%. Заливати до ницања траве. | D41: m² | E41: 222.00 | G41: 0.00
F42: свега 3: | G42: =SUM(G33:G34,G35:G41) -> 0.00
C43: 4. Бетонски и армирачки радови
B44: 4.1. | C44: Изградња степеница бетоном С25/ 30 са потребном оплатом. | D44: m³ | E44: 1.35 | G44: =F44*E44 -> 0.00
B45: 4.2. | C45: Набавка, транспорт и постављање арматуре MA Q188 на степеницама. | D45: kg | E45: =7.4*0.25*3*3.03 -> 16.82 | G45: =F45*E45 -> 0.00
F46: свега 4: | G46: =SUM(G44:G45) -> 0.00
C47: 5. Завршни и остали радови
B48: 5.1. | C48: Геодетско снимање изведеног објекта са предајом у катастар непокретности. | D48: m' | E48: 462.00 | G48: =F48*E48 -> 0.00
F49: свега 5: | G49: =SUM(G48:G48) -> 0.00
C50: 6. Паркинг
B51: 6.1. | C51: Набавка и превоз до места постављања носача саобраћајног знака од челичне цеви Ø 60mm са PVC чепом, заштићена од корозије поступком топлог цинковања, дебљине цинка 60µ
B54: а. | C54: Једностубни цевни носач висине 3300 mm | D54: ком. | E54: 1 | G54: =E54*F54 -> 0.0
B55: б. | C55: Једностубни цевни носач висине 3700 mm | D55: ком. | E55: 3 | G55: =E55*F55 -> 0.0
B56: в. | C56: Постављање носача стандардног саобраћајног знака у претходно израђену стопу од бетона МБ15
D57: ком. | E57: =SUM(E54:E56) -> 4 | G57: =E57*F57 -> 0.0
B58: 6.2. | C58: Набавка и превоз до места постављања саобраћајних знакова класе 1 рефлектујућих особина са свим елементима за причвршћивање за стуб са антиграфит фолијом (појачање, обујмице, завртњи, манжетне и др.)
B62: а. | C62: III-30, a=600mm | D62: ком. | E62: 3 | G62: =E62*F62 -> 0.0
B63: б. | C63: IV-5, 600x300mm (Само на обележеним паркинг местима) | D63: ком. | E63: 2 | G63: 0.0
B64: в. | C64: IV-21, 600x300mm | D64: ком. | E64: 1 | G64: 0.0
B65: 6.3. | C65: Набавка и превоз до места постављања саобраћајних знакова класе 2 рефлектујућих особина са свим елементима за причвршћивање за стуб са антиграфит фолијом (појачање, обујмице, завртњи, манжетне и др.)
B69: а. | C69: II-2, Ø600mm | D69: ком. | E69: 1 | G69: =E69*F69 -> 0.0
B70: 6.4. | C70: Монтажа саобраћајног знака на носач знака | D70: ком. | E70: =SUM(E62:E69) -> 7 | G70: =E70*F70 -> 0.0
B71: 6.5. | C71: Обележавање коловоза бојом ретрорефлектујућих особина са предходним чишћењем и одмашћивањем коловоза, размеравање бојених површина и фарбање коловоза. Цена обухвата и набавку и допрему боје и перле до места обележавања.
B75: а. | C75: косо паркинг место, бела боја | D75: ком. | E75: 13 | G75: =E75*F75 -> 0.0
B76: б. | C76: паркинг место за возила особа са инвалидтетом, жута боја | D76: ком. | E76: 1 | G76: =E76*F76 -> 0.0
B77: 6.6. | C77: Набавка, превоз и монтажа стубића од гуменог гранулата, облика ваљка, пречника 70 mm и висине 650 mm, за спречавање нежељеног улажења возила у парк
D78: ком. | E78: 11 | G78: =E78*F78 -> 0.0
F79: свега 6: | G79: =SUM(G54:G78) -> 0.0
C82: НАПОМЕНА: Депонију обезбеђује извођач радова.
C84: Рекапитулација:
C85: 1. Претходни радови------------------------------------------------------------------------------- | F85: =G24 -> 0.00
C86: 2. Доњи строј------------------------------------------------------------------------------------------ | F86: =G31 -> 0.00
C87: 3. Горњи строј-------------------------------------------------------------------------------------- | F87: =G42 -> 0.00
C88: 4. Бетонски и армирачки радови-------------------------------------------------------------- | F88: =G46 -> 0.00
C89: 5. Завршни и остали pадови---------------------------------------------------------------------- | F89: =G49 -> 0.00
C90: 6. Паркинг---------------------------------------------------------------- | F90: =G79 -> 0.00
C91: Укупно динара без ПДВ: | F91: =SUM(F85:G90) -> 0.00

Sheet Teh.pros.
B1: OBRAZAC STRUKTURE PONUDJENE CENE
A2: PREDMER RADOVA NA REKONSTRUKCIJI TEHNIČKE PROSTORIJE GRAĐEVINSKI RADOVI
A4: I | B4: Земљани радови
A6: 1. | B6: Ископ земље 3 категорије техничку просторију ради израде спољне хидроизолације. Ископ извести према пројекту и датим котама. Бочне стране правилно одсећи, а дно нивелисати. Ископану земљу оставити ради враћања након израде хидроизолације. Обрачун по м³, мерено у збијеном стању на удаљеност до 5км. | C6: m3 | D6: 10.72 | E6: x | G6: = | H6: =+D6*F6 -> 0.00
A8: 2. | B8: Затрпавање око објекта земљом из ископа. Обрачун по м³. | C8: m3 | D8: 10.72 | E8: x | G8: = | H8: =+D8*F8 -> 0.00
A10: II | B10: Разни радови
A12: 1. | B12: Унутрашње малтерисање зидова и плафона техничке просторије продужним малтером у два слоја са предхидним прскањем зидова цементним шприцом.У цену урачунати све потребне радње и пратећи материјал. Обрачун по м². | C12: m2 | D12: 116.56 | E12: x | G12: = | H12: =+D12*F12 -> 0.00
A14: 2. | B14: Зидарско кречење зидова и плафона техничке просторије.У цену урачунати све потребне радње и пратећи материјал. Обрачун по м². | C14: m2 | D14: 116.56 | E14: x | G14: = | H14: =+D14*F14 -> 0.00
A16: 3. | B16: Изолација техничке просторије са спољне стране са 1 слојем Кондора 4 са слојем стиродура д=5цм . У цену урачунати све потребне радње и пратећи материјал. Обрачун по м². | C16: m2 | D16: 26.80 | E16: x | G16: = | H16: =+D16*F16 -> 0.00
A18: 4. | B18: Хидроизолациони пенетрациони премаз техничке просторије , у свему према упутству произвођача са свим потребним предрадњама и материјалом. Радити у више слојева тако да се обезбеди потпуна водонепропусност шахте. Обрачун по м2. | C18: m2 | D18: 31.00 | E18: x | G18: = | H18: =+D18*F18 -> 0.00
A20: 5. | B20: Израда цеметне кошуљице на поду техничке просторије дебљине 3-5 цм са завршном обрадом пердашењем, а у свему према упутству произвођача са свим потребним предрадњама и материјалом. Обрачун по м2. | C20: m2 | D20: 31.00 | E20: x | G20: = | H20: =+D20*F20 -> 0.00
A22: 6. | B22: Завршна обрада подова, премаз стандардним самоливајући под ЕПОХУ, а у свему према упутству произвођача са свим потребним предрадњама и материјалом. Обрачун по м2. | C22: m2 | D22: 31.00 | E22: x | G22: = | H22: =+D22*F22 -> 0.00
A24: 7. | B24: Попуњавање мањих оштећења у бетонским елементима у слоју дебљине 7- 12 мм двокомпонентним полимернимцементним материјалом Изолит РЕПАРАТОР АДВАНЦЕ или сличним. Масу за уградњу припремити мешањем прашкасте и течне компоненте, а према упутству произвођача. Припремљену смесу нанети глетелицом или шпахтлом преко чисте, чврсте и овлажене бетонске подлоге, у свему према упутству произвођача. У цену урачунати и потребну количину Изолит везе прајмера којом је пре уградње материјала потребно премазати подлогу ради ојачања атхезије, а такође у свему према упутству произвођача. Обрачун по м². | C24: m2 | D24: =+D18 -> 31.00 | E24: x | G24: = | H24: =+D24*F24 -> 0.00
A26: III | B26: Браварски радови
A29: 1. | B29: Набавка, транспорт и монтажа металних двокрилних врата са заштитом од приступа неовлашћеним лицима, са антикорозивним премазом. Обрачун по комаду.
B30: Димензије 1.60мx2,20м. | C30: kom | D30: 1.00 | E30: x | G30: = | H30: =+D30*F30 -> 0.00
B31: Димензије 0.80мx2,00м. | C31: kom | D31: 2.00 | E31: x | G31: = | H31: 0.00
A33: 2. | B33: Набавка, транспорт и монтажа мобилних металних мердевина висине 1,5м. Обрачун по комаду. | C33: kom | D33: 1.00 | E33: x | G33: = | H33: =+D33*F33 -> 0.00
B36: РЕКАПИТУЛАЦИЈА ГРАЂЕВИНСКИХ РАДОВА
B38: УКУПНА ВРЕДНОСТ РАДОВА | H38: =+SUM(H6:H36) -> 0.00
B40: УКУПНО: | H40: =H38 -> 0.00

Sheet Voda u parku
A2: ПРЕДМЕР РАДОВА НА РЕКОНСТРУКЦИЈИ ВОДОВОДНЕ МРЕЖЕ У ПАРКУ
A5: I | B5: Земљани радови
A7: 1 | B7: Машински ископ земље 2 и 3 категорије за полагање цевовода са подграђивањем. Позиција обухвата и претходно машинско скидање хумуса у слоју од 20цм са одлагањем на привремену депонију ради каснијег хумузирања. У цену ове позиције урачунати све радове на ископу, подгради рова. Обрачун по м3 ископане земље.
B8: главни вод прикључка | C8: м3 | D8: 32.00 | E8: x | G8: = | H8: =D8*F8 -> 0.00
B9: хидранска мрежа | C9: м3 | D9: 94.20 | E9: x | G9: = | H9: =D9*F9 -> 0.00
A11: 2 | B11: Планирање дна рова са тачношћу од +/- 2 цм према пројектованој нивелети. Обрачун по м2 испланиране површине. | C11: м2 | D11: =D8*0.6+D9*0.6 -> 75.72 | E11: x | G11: = | H11: =D11*F11 -> 0.00
A13: 3 | B13: Набавка, транспорт и разастирање песка дуж рова крупноће зрна до 4мм, 10цм испод цеви, око цеви и 10цм изнад цеви са финим планирањем горње површине и уградњом песка са набијањем у слојевима. Обрачун по м3 уграђеног песка. | C13: м3 | D13: =D8*0.3+D9*0.3 -> 37.86 | E13: x | G13: = | H13: =D13*F13 -> 0.00
A15: 4 | B15: Насипање земљом из ископа, изнад цеви и постељице од песка, са разастирањем, планирањем и квашењем и набијањем до потребне збијености. Захтевани степен збијености треба да износи МС=50 МПа, проверава се кружном плочом д=30 цм, један узорак на сваких 80 м рова. Обрачун по м3 уграђеног материјала. | C15: м3 | D15: =D8*0.7+D9*0.7 -> 88.34 | E15: x | G15: = | H15: =D15*F15 -> 0.00
A17: 5. | B17: Утовар, одвоз и истовар вишка земље на депонију или локацију коју одреди надлежни орган а до удаљености од око 5км. Обрачун по м3 одвежене земље. | C17: м3 | D17: =D7-D13+D15 -> 50.48 | E17: x | G17: = | H17: =D17*F17 -> 0.00
A19: II | B19: Монтажерски радови
A21: 1 | B21: Набавка, транспорт, истовар, разношење дуж рова, спуштање у ров и монтажа цеви у свему према техничким прописима и препорукама произвођача. ПЕХД-цеви ДН 110мм ПН10, СРПС-ЕН 12201. Радни притисак 20˚Ц/ПН10, за пијаћу воду, отпорне на УВ-зраке и температуре од -30˚Ц до +60˚Ц, означене плавом бојом, произвођач, тип, радни притисак и датум производње утиснути на свакој цеви. Фактор сигурности ц=1.25. Спецификација по ДИН 8074/8075, . Обрачун по м' уграђеног цевовода.
B22: главни вод прикључка | C22: м' | D22: 53.00 | E22: x | G22: = | H22: =D22*F22 -> 0.00
B23: хидранска мрежа | C23: м' | D23: 157.00 | E23: x | G23: = | H23: =D23*F23 -> 0.00
A24: 2 | B24: Набавка, испорука и уградња арматуре и фазонских комада од ПЕ материјала. Обрачун по комаду.
B25: ЕФ Q комад 90 ДН110 | C25: ком | D25: 1.00 | E25: x | G25: = | H25: =D25*F25 -> 0.00
B26: електорфузиона спојница без граничника ДН90 | C26: ком | D26: =3*3 -> 9.00 | E26: x | G26: = | H26: =D26*F26 -> 0.00
B27: ЕФ СА седло ДН110/90 | C27: ком | D27: 3.00 | E27: x | G27: = | H27: =D27*F27 -> 0.00
B28: Фриатец вентил ДН 90 | C28: ком | D28: 3.00 | E28: x | G28: = | H28: =D28*F28 -> 0.00
B29: WФ ЕФ Н комад ДН 90 | C29: ком | D29: 3.00 | E29: x | G29: = | H29: 0.00
B30: телескопска гарнитура са уличном капом | C30: ком | D30: 3.00 | E30: x | G30: = | H30: =D30*F30 -> 0.00
A32: 3 | B32: Набавка, испорука и уградња арматуре и фазонских комада од нодуларног (дуктилног) лива који одговарају стандарду ДИН ЕН 545; димензије прирубница и отвори према ЕН 1092-2, ПН 12; заједно са вијцима и наврткама, подлошкама и заптивкама. Заштита: унутршњи и сполјашњи епокси слој мин. 250 миц. И арматура и фазонски комади морају да буду од европског произвођача који поседује сертификате ИСО9001 и 14001. Предност ће имати понуда која садржи и арматуру и фазонски комади од истог произвођача.
B33: Фазонски комади
B34: Надземни против пожарни хидрант ДН 80 | C34: ком | D34: 3.00 | E34: x | G34: = | H34: =D34*F34 -> 0.00
B35: Т комад ДН 100/100 | C35: ком | D35: 2.00 | E35: x | G35: = | H35: =D35*F35 -> 0.00
B36: фланш адаптер ДН 110 | C36: ком | D36: 6.00 | E36: x | G36: = | H36: =D36*F36 -> 0.00
B37: туљак са летећом прирубницом ДН 80/90 | C37: ком | D37: 6.00 | E37: x | G37: = | H37: =D37*F37 -> 0.00
A40: 4 | B40: Затварачи:Набавка, транспорт и монтажа засуна са уградбеном гарнитуром и уличном ливеногвозденом капом (ГГ250) Кратак, ПН 12, ДИН 3352/П4, димензије одговарају према ЕН 558-1 ГР14-кратакт (ДИН 3202-Ф4) димензије прирубница и бушење према ЕН 1092-2 ПН 12 (ДИН 28605 / ДИН 2501), кућиште и поклопац од дуктилног лива ЕН-ГЈС-400-18 према ЕН 1563 (ГГГ 400- ДИН 1693), флуидизовани слој епокси премаза - и сполја према ДИН 30677-П2 према тесту квалитета захтеви РАЛ-Qуалитy Марк 662, клин од нодуларног лива ЕН-ГЈС-400-18 према ЕН 1563 (ГГГ 400-ДИН 1693), унутрашња заштита од корозије, заливено вулканизираним ЕПДМ сполја, са одводном рупом, са челичним телескопским вретеном (мин. оцене квалитета 1.4021-X20Цр13), валјани навој, завртњи заштићени од корозије урањањем и заливањем воском и заптивком поклопца. Вођица вретена заштићена од воде и прлјавштине сполја бришућим прстеном. уклјучујући завртње, навртке, подлошке и заптивке за следеће пречнике. Обрачун по комаду секторског вентила ДН100. | C40: ком | D40: 1.00 | E40: x | G40: = | H40: =D40*F40 -> 0.00
A42: 5 | B42: Набавка, транспорт и уградња траке за обележавање са металним деловима, са поруком "Упозорење Водоводне цеви". Боја траке за обележавање: жута, боја поруке: црна. Обрачун по м' | C42: м' | D42: 220.00 | E42: x | G42: = | H42: =D42*F42 -> 0.00
A45: III | B45: Остали радови
A47: 1 | B47: Израда подземног катастра после полагања и испитивања цевовода, а пре затрпавања (водоводна мрежа) . Обрачун по м. | C47: м' | D47: 220.00 | E47: x | G47: = | H47: =D47*F47 -> 0.00
A49: 2 | B49: Пробно хидрауличко испитивање цевовода - водоводна мрежа. Обрачун по м. | C49: м' | D49: 220.00 | E49: x | G49: = | H49: =D49*F49 -> 0.00
A51: 3 | B51: Дезинфекција цевовода у свему према техничким условима -водоводна мрежа. Обрачун по м'. | C51: м' | D51: 220.00 | E51: x | G51: = | H51: =D51*F51 -> 0.00
A53: 4 | B53: Геодетски снимак и елаборате подземних инсталација. Обрачун паушално. | C53: пауш. | G53: =
A55: 5 | B55: Елаборат геодетских радова за подземне инсталације за изведен објекат. Обрачун паушално. | C55: пауш | G55: =
B57: РЕКАПИТУЛАЦИЈА РАДОВА НА РЕКОНСТРУКЦИЈИ ВОДОВОДНЕ МРЕЖЕ У ПАРКУ
B59: УКУПНА ВРЕДНОСТ РАДОВА | H59: =SUM(H6:H58) -> 0.00
B61: УКУПНО: | H61: =H59 -> 0.00

Sheet Fekalna kanalizacija u parku
A2: ПРЕДМЕР РАДОВА ВОДОВОДНЕ И КАНАЛИЗАЦИОНЕ МРЕЖЕ ЧЕСМЕ У ПАРКУ
A5: I | B5: Земљани радови
A7: 1 | B7: Машински ископ земље 2 и 3 категорије за полагање цевовода и шахти са подграђивањем. Позиција обухвата и претходно машинско скидање хумуса у слоју од 20цм са одлагањем на привремену депонију ради каснијег хумузирања. У цену ове позиције урачунати све радове на ископу, подгради рова. Обрачун по м3 ископане земље.
B8: водовод-цевовод | C8: м3 | D8: 36.30 | E8: x | G8: = | H8: =D8*F8 -> 0.00
B9: канализација-цевовод | C9: м3 | D9: 17.92 | E9: x | G9: = | H9: =D9*F9 -> 0.00
B10: канализационе шахте | C10: м3 | D10: 1.00 | E10: x | G10: = | H10: =D10*F10 -> 0.00
A12: 2 | B12: Планирање дна рова са тачношћу од +/- 2 цм према пројектованој нивелети. Обрачун по м2 испланиране површине. | C12: м2 | D12: =D8*0.6+D9*0.6 -> 32.53 | E12: x | G12: = | H12: =D12*F12 -> 0.00
A14: 3 | B14: Набавка, транспорт и разастирање песка дуж рова крупноће зрна до 4мм, 10цм испод цеви, око цеви и 10цм изнад цеви са финим планирањем горње површине и уградњом песка са набијањем у слојевима. Обрачун по м3 уграђеног песка.
B15: канализација-цевовод | C15: м3 | D15: 6.58 | E15: x | G15: = | H15: =D15*F15 -> 0.00
A17: 4 | B17: Набавка материјала, транспорт и тампон слоја од шљунка природне гранулације д=20цм испод шахти и око шахти. Обрачун по м3 уграђеног шљунка. | C17: м3 | D17: 1.65 | E17: x | G17: = | H17: =D17*F17 -> 0.00
A19: 5 | B19: Набавка, транспорт, разношење гранулисаног материјала, природног порекла, изнад цеви и постелјице од песка, са разастирањем, планирањем и квашењем и набијањем до потребне збијености. Захтевани степен збијености треба да износи МС=50 МПа, проверава се кружном плочом д=30 цм, један узорак на сваких 80 м рова. Обрачун по м3. | C19: м3 | D19: =D8*0.7+D9*0.7 -> 37.95 | E19: x | G19: = | H19: =D19*F19 -> 0.00
A21: 6. | B21: Утовар, одвоз и истовар вишка земље на депонију или локацију коју одреди надлежни орган а до удаљености од око 5км. Обрачун по м3 одвежене земље. | C21: м3 | D21: =D8+D9+D10-D15+D19 -> 86.59 | E21: x | G21: = | H21: =D21*F21 -> 0.00
A23: II | B23: Бетонски радови
A25: 1 | B25: Набавка, транспорт и израда бетонске подлоге димензија 1,5 x 1,5 м, од армираног бетона МВ 20, дебљине 20 цм, за постављање шахти, у дну шахта одрадити кинету. Обрачун по м³ уграђене подлоге. | C25: м3 | D25: 0.45 | E25: x | G25: = | H25: =D25*F25 -> 0.00
A27: 2 | B27: Набавка материјала, транспорт и уградња типских АБ префабрикованих прстенова, кружног попречног пречника 100цм, висине 50 цм и дебљине зида 10 цм. Спојеве прстенова обрадити водонепропусним малтером. Обрачун по метру. | C27: м | D27: 1.00 | E27: x | G27: = | H27: =D27*F27 -> 0.00
A29: 3 | B29: Набавка материјала, транспорт и уградња типских АБ бетонских , префабрикованих, конусних прстенова, унутрашњег пречника 600/1000 мм, висине 0,60 м. Обрачун по комаду. | C29: ком. | D29: 1.00 | E29: x | G29: = | H29: =D29*F29 -> 0.00
A31: 4 | B31: Набавка материјала, транспорт и израда завршних прстенова шахти за уградњу поклопца у нивоу терена, од армираног бетона МВ30, димензија 1,5 х 1,5 х 0,2 м, са кружним отвором пречника 0,6 м, заједно са оплатом и арматуром.У цену урачуната потребна оплата, арматура и неговање бетона. Обрачун по комаду уграђеног завршног прстена. | C31: ком. | D31: 1.00 | E31: x | G31: = | H31: =D31*F31 -> 0.00
A33: III | B33: Монтажерски радови
A35: 1 | B35: Набавка, транспорт и монтажа пвц канализационих цеви и одговарајућих фазонских комада. Спољну мрежу поставити у ровове на постељицу од песка д=10цм. Обрачун по м.
B36: ПВЦ цев Ø110 | C36: м' | D36: 56.00 | E36: x | G36: = | H36: =D36*F36 -> 0.00
A38: 2 | B38: Набавка, транспорт и уграђивање цеви одговарајућег фитинга. Након монтаже извршити испитивање мреже на притисак од 10 бара.У цену урачунати и саб потребан фитинг за повезивање . Обрачун по м.
B39: ПЕ- НД25 | C39: м' | D39: 61.00 | E39: x | G39: = | H39: =D39*F39 -> 0.00
A41: 3 | B41: Набавка, транспорт и уградња спољне чесме. Након монтаже извршити испитивање на притисак .У цену урачунати и саб потребан фитинг за повезивање. Обрачун по ком. | C41: ком | D41: 1.00 | E41: x | G41: = | H41: =D41*F41 -> 0.00
A43: 4 | B43: Повезивање водоводне мреже за чесму у техничкој просторији. У цену урачунати и сав потребан фитинг за спајање- Обрачун паушал. | C43: паушал | D43: 1.00 | E43: x | G43: = | H43: =D43*F43 -> 0.00
A45: 5 | B45: Повезивање канализационе мреже чесме у глану канализациону шахту. У цену урачунти, пробијање за цеви, штевовање и крпљење цеметнима латером након постављања цеви. Обрачун паушал. | C45: паушал | D45: 1.00 | E45: x | G45: = | H45: =D45*F45 -> 0.00
A47: IV | B47: Браварски радови
A49: 1 | B49: Набавка и монтажа ливено-гвоздених пењалица, типа ДИН 1212. У шахтове уградити пењалице на сваких 30цм, смакнуте од осе за по 5цм, наизменично лево и десно. Обрачун по комаду. | C49: ком | D49: 3.00 | E49: x | G49: = | H49: =D49*F49 -> 0.00
A51: 2 | B51: Набавка, транспорт и уградња кружног шахт поклопца са дубоким рамом, пречника 60цм и носивисти 250 кН, у горњи прстен шахта. Обрачун по комаду. | C51: ком | D51: 1.00 | E51: x | G51: = | H51: =D51*F51 -> 0.00
A53: V | B53: Остали радови
A55: 1 | B55: Израда подземног катастра после полагања и испитивања цевовода, а пре затрпавања ( канализациона мрежа) . Обрачун по м. | C55: м' | D55: 117.00 | E55: x | G55: = | H55: =D55*F55 -> 0.00
A57: 2 | B57: Геодетски снимак и елаборате подземних инсталација. Обрачун паушално. | C57: пауш. | G57: =
A59: 3 | B59: Елаборат геодетских радова за подземне инсталације за изведен објекат. Обрачун паушално. | C59: пауш | G59: =
A61: 4 | B61: Извошење преспајања постојећих прикључака на новопројектовану мрежу. У цену улази сав потребан рад и материјал. Обрачун по комаду. | C61: ком | D61: 1.00 | E61: x | G61: = | H61: =D61*F61 -> 0.00
B63: РЕКАПИТУЛАЦИЈА РАДОВА НА РЕКОНСТРУКЦИЈИ ФЕКАЛНЕ КАНАЛИЗАЦИОНЕ МРЕЖЕ У ПАРКУ
B65: УКУПНА ВРЕДНОСТ РАДОВА | H65: =SUM(H6:H64) -> 0.00
B67: УКУПНО: | H67: =H65 -> 0.00

Sheet Zalivni sistem
A2: ПРЕДМЕР РАДОВА НА ЗАЛИВНОМ СИСТЕМУ ПАРКА
A4: I | B4: Земљани радови
A6: 1 | B6: Машински ископ земље 2 и 3 категорије за полагање цевовода и шахти са подграђивањем. Позиција обухвата и претходно машинско скидање хумуса у слоју од 20цм са одлагањем на привремену депонију ради каснијег хумузирања. У цену ове позиције урачунати све радове на ископу, подгради рова. Обрачун по м3 ископане земље. | C6: м3 | D6: 310.40 | E6: x | G6: = | H6: =D6*F6 -> 0.00
A8: 2 | B8: Планирање дна рова са тачношћу од +/- 2 цм према пројектованој нивелети. Обрачун по м2 испланиране површине. | C8: м2 | D8: 388.47 | E8: x | G8: = | H8: =D8*F8 -> 0.00
A10: 3 | B10: Набавка, транспорт и разастирање песка дуж рова крупноће зрна до 4мм, 10цм испод цеви, око цеви и 10цм изнад цеви са финим планирањем горње површине и уградњом песка са набијањем у слојевима. Обрачун по м3 уграђеног песка. | C10: м3 | D10: 38.10 | E10: x | G10: = | H10: =D10*F10 -> 0.00
A12: 4 | B12: Набавка, транспорт, разношење гранулисаног материјала, природног порекла, изнад цеви и постелјице од песка изнад (у зони испод саобраћајница потпуно затрпавање рова гранулисаним материјалом), са разастирањем, планирањем и квашењем и набијањем до потребне збијености. Захтевани степен збијености треба да износи МС=50 МПа, проверава се кружном плочом д=30 цм, један узорак на сваких 80 м рова. Обрачун по м3 уграђеног материјала. | C12: м3 | D12: =49*0.6*(0.6-0.33) -> 7.94 | E12: x | G12: = | H12: =D12*F12 -> 0.00
A14: 5 | B14: Затрпавање рова пробраном земљом из ископа са набијањем у слојевима. Обрачун по м3 уграђеног материјала. | C14: м3 | D14: =+(778-49)*0.6*(0.6-0.33) -> 118.10 | E14: x | G14: = | H14: =D14*F14 -> 0.00
A16: 6 | B16: Утовар, одвоз и истовар вишка земље на депонију или локацију коју одреди надлежни орган а до удаљености од око 5км. Обрачун по м3 одвежене земље. | C16: м3 | D16: =+D6-D14 -> 192.30 | E16: x | G16: = | H16: =D16*F16 -> 0.00
A18: II | B18: Монтажерски радови
A20: 1 | B20: Набавка, транспорт, истовар, разношење дуж рова, спуштање у ров и монтажа цеви у свему према техничким прописима и препорукама произвођача. ПЕХД-цеви ПН10, СРПС-ЕН 12201. Радни притисак 20˚Ц/ПН10, за пијаћу воду, отпорне на УВ-зраке и температуре од -30˚Ц до +60˚Ц, означене плавом бојом, произвођач, тип, радни притисак и датум производње утиснути на свакој цеви. Фактор сигурности ц=1.25. Спецификација по ДИН 8074/8075, . Обрачун по м' уграђеног цевовода.
B21: DN 32mm | C21: м' | D21: 1,480.00 | E21: x | G21: = | H21: =D21*F21 -> 0.00
B22: DN 40mm | C22: м' | D22: 170.00 | E22: x | G22: = | H22: =D22*F22 -> 0.00
B23: DN 50mm | C23: м' | D23: 3.00 | E23: x | G23: = | H23: =D23*F23 -> 0.00
B24: Кап по кап црево | C24: м' | D24: 270.00 | E24: x | G24: = | H24: =D24*F24 -> 0.00
A26: 2 | B26: Набавка, испорука и уградња арматуре и фазонских комада од ПЕ материјала. Обрачун по комаду.
B27: PE T-komad DN32/32 | C27: ком | D27: 15.00 | E27: x | G27: = | H27: =D27*F27 -> 0.00
B28: PE T-komad DN32/40 | C28: ком | D28: 10.00 | E28: x | G28: = | H28: 0.00
B29: PE Q-komad DN32 90° | C29: ком | D29: 20.00 | E29: x | G29: = | H29: 0.00
B30: PE Q-komad DN40 90° | C30: ком | D30: 5.00 | E30: x | G30: = | H30: 0.00
B31: PE T-komad DN32/20 | C31: ком | D31: 33.00 | E31: x | G31: = | H31: 0.00
A33: 3 | B33: Набавка, испорука и уградња арматуре, опреме и фазонских комада за заливни систем. Обрачун по комаду.
B34: Поп-уп ротор 5004 ПЦ, 10 цм, дизна 3.0 | C34: ком | D34: 116.00 | E34: x | G34: = | H34: =D34*F34 -> 0.00
B35: Спирална спојница 3/4"М x навојно колено | C35: ком | D35: 150.00 | E35: x | G35: = | H35: =D35*F35 -> 0.00
B36: НЕW ОБУЈМИЦА ОЈАЦАНА 25x1/2" | C36: ком | D36: 150.00 | E36: x | G36: = | H36: 0.00
B37: Hunter crevo swing joint | C37: м' | D37: 116.00 | G37: = | H37: 0.00
B38: Спирална спојница 1/2"М x навојно колено | C38: ком | D38: 33.00 | E38: x | G38: = | H38: 0.00
B39: Спојна црево СПX, ролна 30 м | C39: ком | D39: 1.00 | E39: x | G39: = | H39: =D39*F39 -> 0.00
B40: Управљачка јединица Hunter 14zona | C40: ком | D40: 1.00 | E40: x | G40: = | H40: 0.00
B41: Батерија алкална 9В | C41: ком | D41: 1.00 | E41: x | G41: = | H41: 0.00
B42: Подземни кабл 5*1,5 | C42: м' | D42: 150.00 | G42: = | H42: 0.00
B43: Подземни кабл 3*1,5 | C43: м' | D43: 350.00 | G43: = | H43: 0.00
B44: САХТ КУТИЈА 10 | C44: ком | D44: 8.00 | E44: x | G44: = | H44: 0.00
B45: Ел.маг.вентил цол'' | C45: ком | D45: 14.00 | E45: x | G45: = | H45: 0.00
B46: Пумпни агрегат за заливање ЕБАРА МАТРИX 10-5/22 Хyдровисион Београд или одговарајући. | C46: ком | D46: 1.00 | E46: x | G46: = | H46: 0.00
B47: РЕКАПИТУЛАЦИЈА ЗАЛИВНОГ СИСТЕМА
B49: УКУПНА ВРЕДНОСТ РАДОВА | H49: =+SUM(H5:H47) -> 0.00
B51: УКУПНО: | H51: =H49 -> 0.00

Sheet EE Instalacije
A1: 4.6. 7. | B1: PREDMER RADOVA JAVNA RASVETA
A3: Red. Broj | B3: Opis radova | C3: Jed. Mere. | D3: Količina | E3: Jedinična cena | F3: Iznos
A5: I | B5: RADOVI NA IZRADI JAVNE RASVETE
B6: Materijala i usluga za javno osvetljenje parkovskih površina sa kandelaberskim stubovima
A7: A | B7: ELEKTRO MATERIJAL
A8: 1 | B8: Niskonaponski kablovski vod PP00/A-4x16mm2 | C8: m | D8: 1230 | F8: =D8*E8 -> 0.00
A9: 2 | B9: Niskonaponski kablovski vod PP00-3x1,5mm2 | C9: m | D9: 240 | F9: 0.00
A10: 3 | B10: Al plocice za oznaku kablova | C10: kom | D10: 46 | F10: 0.00
A11: 4 | B11: Čelični stub h=4m sa ugrađenom LED uličnom svetiljkom RoadLight Stratus RE488-80W-740, proizvođača OPPLE/LEgroup, namenjena je za osvetljenje saobraćajnica, parking prostora, industrijskih zona i javnih površina, sa naglaskom na energetsku efikasnost, pouzdanost i dug vek trajanja. Svetiljka koristi LED izvor ukupne snage 80 W, pri čemu emituje svetlosni fluks od približno 12.000 lm, što obezbeđuje visoku efikasnost od oko 150 lm/W. Boja svetla je 4000 K (neutralno bela), uz indeks reprodukcije boje CRI > 70 Ra, koji omogućava prirodan prikaz boja i dobru vidljivost u noćnim uslovima. Kućište svetiljke izrađeno je od livenog aluminijuma sa kvalitetnom praškasto sivo obradom (RAL 870-3), otpornom na koroziju i UV zračenje. Zaštitno staklo je kaljeno i UV stabilizovano, obezbeđujući visok stepen pouzdanosti u spoljašnjim uslovima. Svetiljka ima stepen zaštite IP66, što znači potpunu otpornost na prašinu i snažne mlazove vode, kao i mehaničku otpornost IK08. Svetiljka je testirana na otpornost užarenog provodnika (glow-wire test) do 850 °C, što dodatno potvrđuje njenu sigurnost. Optički sistem pruža preciznu distribuciju svetla sa uglom snopa 143° × 70°, čime se postiže optimalna pokrivenost i minimalno rasipanje svetlosti van ciljne površine. Svetiljka se može montirati bočno (side entry) ili na vrh stuba (pole-top), pomoću univerzalnog adaptera koji omogućava instalaciju na stubove prečnika Ø 60–76 mm, uz mogućnost podešavanja ugla nagiba. Predviđena je za rad u temperaturnom opsegu od –25 °C do +45 °C, sa životnim vekom L70 ≥ 100.000 sati i više od 100.000 ciklusa uključivanja/isključivanja, što značajno smanjuje troškove održavanja. Napajanje (drajver) je elektronsko, visokog faktora snage (PF ≥ 0,9) i niskih gubitaka, sa zaštitom od prenapona i termičkog opterećenja. Svetiljka RoadLight Stratus RE488-80W-740 proizvođača OPPLE/LEgroup projektovana je u skladu sa važećim evropskim standardima i direktivama, poseduje CE oznaku i namenjena je zahtevnim spoljnim instalacijama gde su potrebni dug vek, pouzdan rad i visok kvalitet osvetljenja. | C11: kom | D11: 46 | F11: 0.00
A12: 6 | B12: PVC upozoravajuca traka | C12: m | D12: 1230 | F12: 0.00
A13: 7 | B13: PVC plastični štitnici 1000x100 mm | C13: kom | D13: 450 | F13: 0.00
A14: 8 | B14: PVC tvrda cev fi 100 mmx6m | C14: m | D14: 45 | F14: 0.00
A15: 9 | B15: Traka Fe - Zn 25x4 mm | C15: m | D15: 450 | F15: 0.00
A16: 10 | B16: Ukrsni komad SRPS N.B4.936 | C16: kom | D16: 60 | F16: 0.00
A17: 11 | B17: Osigurač FRA 16/10 A | C17: kom | D17: 46 | F17: 0.00
A18: 12 | B18: Nabavka isporuka i ugradnja ormana javnog osvetljenja. Orman je od izolacionog materijala u zaštiti IP 65, orijentacionih dimenzija 400 x 600 x 200 mm postavljen u tehničkoj prostoriji sa ugrađenom sledećom opremom :
B19: Fid zaštitna sklopka 25/0,5A Automatski osigurač B tipa nazivne struje 6A kom 2 Automatski osigurač C tipa nazivne struje 16A kom 3 Kontaktor 25A, 220V . Digitalni uklopnik DBV 2006 grebenasti prekidač 1-0-2, 16A 1p , Materijal potreban za šemiranje ormana do njegove pune funkcionalnosti sa ispitivanjem Komplet povezan, montiran i pušten u rad orman RO JO | C19: kom | D19: 1 | F19: =D19*E19 -> 0.00
A20: 13 | B20: Potreban prateći sitan materijal | C20: komp | D20: 1 | F20: =D20*E20 -> 0.00
B21: UKUPNO ELEKTRO MATERIJAL
E22: SVEGA POD A: | F22: =SUM(F7:F21) -> 0.00
A23: B | B23: GRADJEVINSKI MATERIJAL i GRAĐEVINSKI RADOVI
A24: 1 | B24: Ručni iskop zemlje III kategorije za prelaz preko puta na mestima postavljanja PVC cevi:-dimenzija 1,0m x 0,8 m | C24: m | D24: 45 | F24: =D24*E24 -> 0.00
A25: 2 | B25: Rucni iskop rova u zemlji III kategorije dimenzija 0,8mx0,4m | C25: m | D25: 1220 | F25: =D25*E25 -> 0.00
A26: 3 | B26: Rucni iskop zemlje za temelje betonskih stubova dim 0.6x0.6x0.6 u zemlji III kategorije | C26: kom | D26: 46 | F26: =D26*E26 -> 0.00
A27: 4 | B27: Betoniranje temelja za rasvetne nasadne stubove sa šalovanjem fiksiranjem otvora za stub i uvodnog PVC creva.Traka FeZn 25x4 prolazi kroz betonski temelj | C27: kom | D27: 46 | F27: =D27*E27 -> 0.00
A28: 5 | B28: Isporuka i nasipanje kablovskog rova peskom u sloju 2x10 cm- izrada kablovske posteljice-. | C28: m3 | D28: 98 | F28: =D28*E28 -> 0.00
A29: 6 | B29: Postavljanje cevi:
B30: tvrdih PVC cevi fi 110 mm za prelaz preko ulice. | C30: m | D30: 45 | F30: =D30*E30 -> 0.00
A31: 7 | B31: Polaganje PVC upozoravajuće trake | C31: m | D31: 1230 | F31: =D31*E31 -> 0.00
A32: 8 | B32: Razvlačenje i polaganje PVC štitnika | C32: m | D32: 1230 | F32: 0.00
A33: 9 | B33: Razvlačenje i polaganje pocinkovane trake Fe Zn | C33: m | D33: 450 | F33: 0.00
A34: 10 | B34: Kontrola nabijenosti materijala u kablovskom rovu. Najmanja nabijenost je 62 % (SRPS,U.B1.036). Ili najmanji modul stišljivosti 250 N/mm²(SRPS.U.B1.146). | C34: kom. | D34: 2.0 | F34: 0.00
A35: 11 | B35: Ručni utovar zemlje preostale od iskopa u vozilo sa ručnim istovarom na deponiji. | C35: m3 | D35: 98.0 | F35: 0.00
A36: 12 | B36: Prevoz zemlje preostale od iskopa i lomljenog betona i asfalta do deponije, udaljenosti do 10km. | C36: m3 | D36: 98.0 | F36: 0.00
A37: 13 | B37: Geodetsko obeležavanje položaja stubova prema priloženim koordinatama | C37: kom. | D37: 46 | F37: 0.00
A38: 14 | B38: Geodetsko snimanje rova sa uplanjenjem | C38: m | D38: 1230 | F38: 0.00
A39: 15 | B39: Potreban prateći sitan materijal | C39: komp | D39: 1 | F39: 0.00
B40: UKUPNO GRADJEVINSKI MATERIJAL i RADOVI | F40: =SUM(F24:F39) -> 0.00
A41: C | B41: ELEKTRO RADOVI
A42: 1 | B42: Demontaža i uklanjanje postojećih stubova javne rasvete i mašinsko odnošenje stubova i zapisnička predaja investitoru | C42: kom | D42: 27 | F42: =D42*E42 -> 0.00
A43: 2 | B43: Raznošenje stubova duž trase sa podizanjem kandelaberskih stubova i fiksiranjem nasađivanjem stuba u prethodno pripremljen temelj | C43: kom | D43: 46 | F43: =D43*E43 -> 0.00
A44: 3 | B44: Montaža ulične- parkovske svetiljke 80W | C44: kom | D44: 46 | F44: =D44*E44 -> 0.00
A45: 4 | B45: Uvođenje kabla u stub i otvaranje kabla PP00/A- 4x16mm2 sa izradom suve završnice. | C45: kom | D45: 46 | F45: 0.00
A46: 5 | B46: Izrada veza na aralditnoj ploči i na svetiljkama zajedno sa Al Cu papučicama - 8 komada po stubu | C46: kom | D46: 46 | F46: 0.00
A47: 6 | B47: Izrada natpisnih pločica i postavljanje na kablovske završetke. | C47: kom | D47: 46 | F47: 0.00
A48: 7 | B48: Polaganje kabla PP00/A- 4x16mm2 u vec iskopan rov sa postavljanjem stitnika i pozor trake na odgovarajucoj visini u odnosu na kabl. | C48: m | D48: 1230 | F48: 0.00
A49: 8 | B49: Izrada galvanske veze na stubu za javno osvetljenje sa uzemljivačem bakarnim užetom 16 mm2, prema grafičkom prilogu. | C49: kom | D49: 46 | F49: 0.00
A50: 9 | B50: Provera zastite od indirektnog napona dodira i merenje otpora izolacije. | C50: kom | D50: 1 | F50: 0.00
B51: UKUPNO ELEKTRO RADOVI JR | F51: =SUM(F42:F50) -> 0.00
B53: REKAPITULACIJA JAVNA RASVETA
A54: A | B54: ELEKTRO MATERIJAL | F54: =F22 -> 0.00
A55: B | B55: GRADJEVINSKI MATERIJAL I GRAĐEVINSKI RADOVI | F55: =F40 -> 0.00
A56: C | B56: ELEKTRO RADOVI JR | F56: =F51 -> 0.00
B57: UKUPNO JAVNA RASVETA BEZ PDV - A | F57: =SUM(F54:F56) -> 0.00
A59: II | B59: RADOVI NA IZRADI ELEKTROINSTALACIJA TEHNIČKE PROSTORIJE
A60: A | B60: KABLOVI
B61: Isporuka i ugradnja kabla za napajanje objekta, kabl je tipa PP00-A 4x16 mm². Kabl se polaže od ormana mernog mesta PMM1 do GRO u tehničkoj prostoriji. Iskop rova za polaganje kabla dat u građevinskim radovima | C61: m | D61: 89 | F61: =D61*E61 -> 0.00
B62: Isporuka i ugradnja metalnog plastificiranog sapa creva unutrašnjeg prečnika fi 20 mm | C62: m | D62: 40 | F62: =D62*E62 -> 0.00
B63: Isporuka i ugradnja razvodne PVC kutije dimenzija 80x80 x50 u zaštiti IP65 | C63: kom | D63: 5 | F63: 0.00
B64: Isporuka i ugradnja PNK regala dimenzija 100 x 50 mm sa priborom za postavljanje | C64: met | D64: 25 | F64: 0.00
B65: UKUPNO KABLOVI | F65: =SUM(F61:F64) -> 0.00
A66: B | B66: INSTALACIJA UTIČNICA I RASVETE TEH. PROSTORIJE
A67: 1 | B67: Isporuka i ugradnja monofazne utičnice veličine OG u zaštiti IP 54 za montažu na zid | C67: kom. | D67: 5 | F67: =D67*E67 -> 0.00
A68: 2 | B68: Isporuka i ugradnja LED svetiljke snage 18W u zaštiti IP 65 boja svetla 4000K. | C68: kom. | D68: 6 | F68: =D68*E68 -> 0.00
B69: UKUPNO INSTALACIJA RASVETE I UTIČNICA | F69: =SUM(F67:F68) -> 0.00
A70: C | B70: INSTALACIJA UZEMLJENJA
A71: 1 | B71: Nabavka isporuka i montaža pocinkovane trake 25 x4 mm za izradu temeljnog uzemljivača tehnićke prostorije. Plaća se po dužnom metru položene trake . | C71: met | D71: 36 | F71: =D71*E71 -> 0.00
A72: 2 | B72: Isporuka i ugradnja ukrsnih komada | C72: kom | D72: 5 | F72: =D72*E72 -> 0.00
A73: 3 | B73: Nabavka isporuka i montaža pocinkovane trake 20 x3 mm za izradu prstena za izjednačavaanje potencijala u tehničkoj prostoriji na visini 0,5 metara od poda. U cenu uračunate i potpore za zid na rastojanju 1 metar. Plaća se po dužnom metru položene trake . | C73: met | D73: 20 | F73: 0.00
A74: 4 | B74: ŠIP ormarić nadgradni sa bakarnom šinom 20 x3 mm | C74: kom | D74: 1 | F74: 0.00
A75: 5 | B75: Povezivanje svih metalnih masa tehničke prostorije na ŠIP uzemljivač provodnikom p/f 16 mm2 | C75: kompl. | D75: 1 | F75: 0.00
B76: UKUPNO INSTALACIJA UZEMLJENJA | F76: =SUM(F71:F75) -> 0.00
A77: D | B77: MERENJA I ISPITIVANJA INSTALACIJA
A78: 1 | B78: Završna merenja i ispitivanja električnih i instalacija izjednačenja potencijala njihova predaja investitoru. | C78: kom. | D78: 1 | F78: =D78*E78 -> 0.00
A79: 2 | B79: Izrada projekta izvedenog stanja sa svim izmenama . | C79: kom. | D79: 1 | F79: =D79*E79 -> 0.00
B80: UKUPNO MERENJA I ISPITIVANJA INSTALACIJA | F80: =SUM(F78:F79) -> 0.00
B83: REKAPITULACIJA INSTALACIJA TEHNIČKE PROSTORIJE
B84: KABLOVI | F84: =F65 -> 0
B85: INSTALACIJA UTIČNICA I RASVETE TEH. PROSTORIJE | F85: =F69 -> 0
B86: INSTALACIJA UZEMLJENJA | F86: =F76 -> 0
B87: MERENJA I ISPITIVANJA INSTALACIJA | F87: =F80 -> 0.00
B88: UKUPNO ELEKTROINSTALACIJA TEHNIČKE PROSTORIJE | F88: =SUM(F84:F87) -> 0
B91: ZBIRNA REKAPITULACIJA ELEKTRORADOVA NA OBJEKTU
A92: I | B92: RADOVI NA IZRADI JAVNE RASVETE | F92: =F57 -> 0.00
A93: II | B93: ELEKTRORADOVI ZA TEHNIČKU PROSTORIJU | F93: =F88 -> 0.00
B94: UKUPNO ( I + II ) BEZ PDV-a | F94: =SUM(F92:F93) -> 0

Sheet Spoljnouredjenje
A1: 9.5.3 ПРЕДМЕР РАДОВА И ПРЕДРАЧУН ТРОШКОВА СПОЉНОГ УРЕЂЕЊА - ПЕЈЗАЖНЕ АРХИТЕКТУРЕ
A2: Главашев парк на к.п. 3216 К.О. Смедеревска Паланка
A3: БР.ПОЗ. | B3: ОПИС РАДОВА | C3: Јед. Мере | D3: Количина | E3: Цена (Eur) | F3: ИЗНОС (Eur) | G3: Јединична цена без ПДВ-а (РСД) | H3: Укупна цена без ПДВ-а (РСД)
A4: 01.000 | B4: ПРИПРЕМНИ РАДОВИ
A5: 01.001 | B5: Пренос пројекта на терен - Позицијом је обухваћено обележавање трасе, сва геодетска мерења, тј. преношење података с пројекта на терен и обрнуто, осигурање и одржавање обележених ознака на терену за време грађења, односно до предаје радова Инвеститору. | E5: =G5/118 -> 0.00 | F5: =E5*D5 -> 0.00
B6: Обрачун по m². | C6: m² | D6: 5,566.00 | E6: 0.00 | F6: 0.00 | H6: =D6*G6 -> 0.00
A7: 01.002 | B7: Осигуравање и обезбеђивање градилишта - Позицијом је обухваћена набавка, транспорт и постављање градилишне ограде у складу са ПРАВИЛНИКОМ О САДРЖАЈУ ЕЛАБОРАТА О УРЕЂЕЊУ ГРАДИЛИШТА ("Сл. гласник РС", бр.4/2025) | E7: 0.00 | F7: 0.00
B8: Обрачун по m' | C8: m' | D8: 424 | E8: 0.00 | F8: 0.00 | H8: =D8*G8 -> 0.00
A9: 01.003 | B9: Постављање градилишне табле - Позицијом је обухваћена израда, транспорт и постављање градилишне табле у складу са ПРАВИЛНИКОМ О ИЗГЛЕДУ, САДРЖИНИ И МЕСТУ ПОСТАВЉАЊА ГРАДИЛИШНЕ ТАБЛЕ (''Сл.гласник РС'', бр 97/2023). | E9: 0.00 | F9: 0.00
B10: Обрачун је по комаду. | C10: ком | D10: 1 | E10: 0.00 | F10: 0.00 | H10: =D10*G10 -> 0.00
A11: 01.004 | B11: Постављање контејнера - позицијом је обухваћена набавка, транспорт и постављање градилишног контејнера. | E11: 0.00 | F11: 0.00
B12: Обрачун је по комаду. | C12: ком | D12: 1 | E12: 0.00 | F12: 0.00 | H12: =D12*G12 -> 0.00
A13: 01.005 | B13: Постављање мобилног тоалета - позицијом је обухваћена набавка, транспорт и постављање мобилног тоалета за градилиште. | E13: 0.00 | F13: 0.00
B14: Обрачун је по комаду. | C14: ком | D14: 1 | E14: 0.00 | F14: 0.00 | H14: =D14*G14 -> 0.00
A15: 01.006 | B15: Сеча стабала, утовар и одвоз на депонију | E15: 0.00 | F15: 0.00
B16: Обрачун је по комаду. | C16: ком | D16: 33 | E16: 0.00 | F16: 0.00 | H16: =D16*G16 -> 0.00
A17: 01.007 | B17: Машинско вађење пањева, утовар и одвоз на депонију | E17: 0.00 | F17: 0.00
B18: Обрачун је по комаду. | C18: ком | D18: 66 | E18: 0.00 | F18: 0.00 | H18: =D18*G18 -> 0.00
A19: 01.008 | B19: Сеча сувих грана и формирање крошње, утовар грана и одвоз на депонију | E19: 0.00 | F19: 0.00
B20: Обрачун је по m³. | C20: m³ | D20: 36 | E20: 0.00 | F20: 0.00 | H20: =D20*G20 -> 0.00
A21: 01.000 | B21: ПРИПРЕМНИ РАДОВИ | F21: =SUM(F5:F8) -> 0.00 | H21: =SUM(H5:H20) -> 0.00
A23: 02.000 | B23: ЗЕМЉАНИ РАДОВИ
A25: 02.001 | B25: СКИДАЊЕ ПОВРШИНСКОГ СТЕРИЛНОГ СЛОЈА ЗЕМЉЕ
B26: Машинско скидање постојеће стерилне земље и шута на свим површинама које се озелењавају, у слоју од 10 cm дебљине, утовар и одвоз на депонију до 15 km удаљености.
B27: Обрачун по m³ | C27: m³ | D27: 559.00 | E27: 10.00 | F27: =E27*D27 -> 5,590.00 | H27: =+D27*G27 -> 0.00
A28: 02.002 | B28: ХУМУСИРАЊЕ
B29: Набавка, транспорт и уградња хумусне земље за хумизирање површина за садњу у слоју d=10 cm. Фино планирање земље +/-2 cm.
B30: Обрачун по m³ | C30: m³ | D30: 670.00 | E30: 20.00 | F30: =E30*D30 -> 13,400.00 | H30: =+D30*G30 -> 0.00
A31: 02.003 | B31: ИСПУНА ЖАРДИЊЕРА
B32: Набавка, транспорт и уградња хумусне земље у жардињере у слоју d=35 cm.
B33: Обрачун по m³ | C33: m³ | D33: 15.50 | E33: 20.00 | F33: =E33*D33 -> 310.00 | H33: =+D33*G33 -> 0.00
A34: 02.000 | B34: ЗЕМЉАНИ РАДОВИ | F34: =SUM(F24:F30) -> 18,990.00 | H34: =SUM(H24:H33) -> 0.00
A36: 03.000 | B36: ОСТАЛИ МАТЕРИЈАЛИ И РАДОВИ
A37: 03.001 | B37: Набавка, транспорт и уградња сивог декоративног шљунка (ø 4-8 mm, d=5 cm) са носивим слојем од дробљеног каменог агрегата 0-32 mm (у два слоја од 15 cm), и нивелационим слојем од песка d = 5 cm на површинама предвиђеним за сет за шах.
B38: Обрачун по m², комплет | C38: m² | D38: 45.00 | E38: =G38/118 -> 0.00 | F38: =E38*D38 -> 0.00 | H38: =+D38*G38 -> 0.00
A39: 03.002 | B39: Набавка, транспорт и распростирање малча у дебљини d=10 cm.
B40: Обрачун по m² | C40: m² | D40: 60.00 | E40: =G40/118 -> 0.00 | F40: =E40*D40 -> 0.00 | H40: =+D40*G40 -> 0.00
A41: 03.003 | B41: Уградња граничника
B42: Набавка, транспорт и постављање бордуре - граничника "Linefix" (HD-PЕ) h= 17,5 cm са "Hauraton" (HD-PЕ) анкерима L= 28 cm. Граничници се постављају између застора од малча и травњака, застора од декоративног шљунка и и травњака и застора од гумених плоча и травњака.
B43: Обрачун по m', комплет | C43: m' | D43: 160.00 | E43: 5.00 | F43: =E43*D43 -> 800.00 | H43: =+D43*G43 -> 0.00
A44: 03.004 | B44: Набавка, транспорт и ручна уградња насипа од песка за застор од гумене подлоге, d=30cm Ms<30 MPa у збијеном стању.
B45: Обрачун по m³, комплет | C45: m³ | D45: 33.00 | E45: =G45/118 -> 0.00 | F45: =E45*D45 -> 0.00 | H45: =+D45*G45 -> 0.00
A46: 03.005 | B46: Набавка, транспорт и ручна уградња тампона од дробљеног каменог агрегата за застор од гумене подлоге 0-63mm d=20cm. Мs=50МPа.
B47: Обрачун по m³, комплет | C47: m³ | D47: 23.00 | E47: =G47/118 -> 0.00 | F47: =E47*D47 -> 0.00 | H47: =+D47*G47 -> 0.00
A48: 03.006 | B48: Набавка, транспорт и ручна уградња тампона од дробљеног каменог агрегата за застор од гумене подлоге 0-31,5mm d=10cm, са набавком и превозом Мs=60МPа.
B49: Обрачун по m³, комплет | C49: m³ | D49: 12.00 | E49: =G49/118 -> 0.00 | F49: =E49*D49 -> 0.00 | H49: =+D49*G49 -> 0.00
A50: 03.007 | B50: Набавка, транспорт и уградња армираног бетона МБ-20 у слоју d=10 cm, ливено у кампадама са остављањем дилетација. Арматура: мрежа Q-188. Обрачун по m³
B51: Обрачун по m², комплет | C51: m³ | D51: 12.00 | E51: =G51/118 -> 0.00 | F51: =E51*D51 -> 0.00 | H51: =+D51*G51 -> 0.00
A52: 03.008 | B52: Набавка, транспорт и уградња плоча од млевене гуме, дим. 50x50x5cm, на подлогу од арм. бетона МБ-20 (d=10cm). Боја плоча зелена.
B53: Обрачун по m², комплет | C53: m² | D53: 110.00 | E53: =G53/118 -> 0.00 | F53: =E53*D53 -> 0.00 | H53: =+D53*G53 -> 0.00
A54: 03.009 | B54: Анкери
B55: Набавка, транспорт и уградња дрвених анкера који се побијају у земљу и за њих се везује садница како се не би померала. Пречник анкера мора бити мин. 6цм или ако су у питању четвороугаони облици, димензија анкера треба да буде минимум 5x5cm, укупне дужине 2,5- 3,0 m. Везују се укрштеним гуртнама (тракама ширине око 5cm), за дебло које се претходно заштити гуменом обујмницом. За сваку нову лишћарску садницу користе се по два, а за четинарску по 3 анкера које је потребно лепо обрадити и премазати заштитним средством за дрво. (59 х 2) + (40 х 3) = 238
B56: Обрачун по комаду | C56: ком | D56: 238.00 | E56: 9.00 | F56: =E56*D56 -> 2,142.00 | H56: =+D56*G56 -> 0.00
A57: 03.010 | B57: Лапидаријум
B58: Груписање и премештање постојећег лапидаријума на површину под травњаком П10.
B59: Обрачун је паушално | C59: пауш. | D59: 1.00 | E59: 9.00 | F59: =E59*D59 -> 9.00 | H59: =+D59*G59 -> 0.00
A60: 03.000 | B60: =B36 -> ОСТАЛИ МАТЕРИЈАЛИ И РАДОВИ | H60: =SUM(H37:H59) -> 0.00
A62: 04.000 | B62: САДЊА САДНИЦА
A63: 04.001 | B63: ВИСОКИ И КАЛЕМЉЕНИ ЛИШЋАРИ
B64: Набавка, транспорт, садња садница високих и калемљених лишчара. Садњу обавити у свему према важећим нормативима за ту врсту посла. Обрачун по ком.
A65: 1 | B65: Quercus rubra, Обим дебла 18/20 cm; висина > 3,0 m
C66: ком | D66: 3.00 | E66: 350.00 | F66: =E66*D66 -> 1,050.00 | H66: =+D66*G66 -> 0.00
A67: 2 | B67: Aesculus hippocastanum, Обим дебла18/20 cm; висина > 3,0 m
C68: ком | D68: 2.00 | E68: 250.00 | F68: =E68*D68 -> 500.00 | H68: =+D68*G68 -> 0.00
A69: 3 | B69: Liqudambar styraciflua, Обим дебла 18/20cm; висина > 3,0 m
C70: ком | D70: 8.00 | E70: 400.00 | F70: =E70*D70 -> 3,200.00 | H70: =+D70*G70 -> 0.00
A71: 4 | B71: Tilia cordata, Обим дебла 18/20 cm; висина > 3,0 m
C72: ком | D72: 4.00 | E72: 400.00 | F72: =E72*D72 -> 1,600.00 | H72: =+D72*G72 -> 0.00
A73: 5 | B73: Betula alba multi-stemmed, Висина > 4,0 m
C74: ком | D74: 9.00 | E74: 300.00 | F74: =E74*D74 -> 2,700.00 | H74: =+D74*G74 -> 0.00
A75: 6 | B75: Ginkgo biloba, Обим дебла18/20 cm; висина > 3,0 m
C76: ком | D76: 6.00 | E76: 250.00 | F76: =E76*D76 -> 1,500.00 | H76: =+D76*G76 -> 0.00
A77: 7 | B77: Prunus cerasifera 'Pissardii', Обим дебла 18/20 cm; висина > 3,0 m
C78: ком | D78: 9.00 | E78: 400.00 | F78: =E78*D78 -> 3,600.00 | H78: =+D78*G78 -> 0.00
A79: 8 | B79: Prunus serrulata 'Kanzan', Обим дебла 18/20 cm; висина > 3,0 m
C80: ком | D80: 5.00 | E80: 250.00 | F80: =E80*D80 -> 1,250.00 | H80: =+D80*G80 -> 0.00
A81: 9 | B81: Cercis siliquastrum, Висина > 3,0 m
C82: ком | D82: 5.00 | E82: 300.00 | F82: =E82*D82 -> 1,500.00 | H82: =+D82*G82 -> 0.00
A83: 10 | B83: Albizia julibrissin, Обим дебла 14/16 cm; висина > 3,0 m
C84: ком | D84: 2.00 | E84: 300.00 | F84: =E84*D84 -> 600.00 | H84: =+D84*G84 -> 0.00
A85: 11 | B85: Magnolia grandiflora, Обим дебла 14/16 cm; висина > 3,0 m
C86: ком | D86: 6.00 | E86: 300.00 | F86: =E86*D86 -> 1,800.00 | H86: =+D86*G86 -> 0.00
A87: 04.002 | B87: ЧЕТИНАРСКО ДРВЕЋЕ
B88: Набавка, транспорт, садња садница декоративних четинара. Садњу обавити у свему према важећим нормативима за ту врсту посла. Обрачун по ком.
A89: 12 | B89: Cedrus atlantica, Висина > 3,0 m
C90: ком | D90: 10.00 | E90: 150.00 | F90: =E90*D90 -> 1,500.00 | H90: =+D90*G90 -> 0.00
A91: 13 | B91: Picea pungens 'Glauca', Висина > 2,0 m
C92: ком | D92: 10.00 | E92: 150.00 | F92: =E92*D92 -> 1,500.00 | H92: =+D92*G92 -> 0.00
A93: 14 | B93: Pinus nigra, Обим дебла 18/20 cm; Висина > 3,0 m
C94: ком | D94: 14.00 | E94: 150.00 | F94: =E94*D94 -> 2,100.00 | H94: =+D94*G94 -> 0.00
A95: 15 | B95: Pinus wallichiana, Висина > 3,0 m
C96: ком | D96: 6.00 | E96: 150.00 | F96: =E96*D96 -> 900.00 | H96: =+D96*G96 -> 0.00
A97: 04.003 | B97: ЖИВА ОГРАДА
B98: Набавка, транспорт и садња садница живе ограде. Садњу обавити у свему према важежим нормативима за ту врсту посла. Обрачун по ком.
A100: 16 | B100: Prunus laurocerasus, Висина 130/150 cm, норматив садње 3 ком/m'
C101: ком | D101: 135.00 | E101: 4.00 | F101: =E101*D101 -> 540.00 | H101: =+D101*G101 -> 0.00
A102: 04.004 | B102: ЖБУЊЕ
B103: Садња жбуња. Позиција обухвата набавку, транспорт и садњу по општим условима за извођење ове врсте радова. Обрачун по ком.
A104: 17 | B104: Lonicera nitida, Висина > 20cm, норматив садње 9 ком/m²
C105: ком | D105: 164.00 | E105: 45.00 | F105: =E105*D105 -> 7,380.00 | H105: =+D105*G105 -> 0.00
A106: 18 | B106: Thuja occidentalis 'Danica', Висина > 20 cm, норматив садње 5 ком/m²
C107: ком | D107: 35.00 | E107: 150.00 | F107: =E107*D107 -> 5,250.00 | H107: =+D107*G107 -> 0.00
A108: 04.005 | B108: ПЕРЕНЕ И УКРАСНЕ ТРАВЕ
B109: Набавка, транспорт и садња садница перена и украсних трава. Садњу обавити у свему према важећим нормативима за ту врсту посла. Обрачун по ком.
A110: 19 | B110: Lavandula officinalis, Висина 15/20 cm, норматив садње 6 кoм/m²
C111: ком | D111: 150.00 | E111: 6.00 | F111: =E111*D111 -> 900.00 | H111: =+D111*G111 -> 0.00
A112: 20 | B112: Pennisetum alopecuroides, Висина 15/20 cm, норматив садње 5 ком/m²
C113: ком | D113: 35.00 | E113: 6.00 | F113: =E113*D113 -> 210.00 | H113: =+D113*G113 -> 0.00
A114: 04.000 | B114: =+B62 -> САДЊА САДНИЦА | F114: =SUM(F63:F113) -> 39,580.00 | H114: =SUM(H63:H113) -> 0.00
A116: 05.000 | B116: ПОДИЗАЊЕ ТРАВЊАКА
A117: 05.001 | B117: ЗАСНИВАЊЕ ТРАЊАКА СЕТВОМ СЕМЕНА
B118: Набавка семена и заснивање ојачаног травњака за сенку са ротофрезирањем, грубим и финим планирањем, ваљањем и првим заливањем
B119: Обрачун по m² , комплет | C119: m² | D119: 5,531.00 | E119: 6.00 | F119: =E119*D119 -> 33,186.00 | H119: =+D119*G119 -> 0.00
A120: 05.000 | B120: =B116 -> ПОДИЗАЊЕ ТРАВЊАКА | F120: =SUM(F117:F119) -> 33,186.00 | H120: =SUM(H117:H119) -> 0.00
A122: 06.000 | B122: СОФТВЕР ЗА УПРАВЉАЊЕ ЗЕЛЕНИМ ПОВРШИНАМА
A123: 06.001 | B123: Двогодишња лиценца за софтверску платформу са подршком произвођача - основни пакет - Дигитална мапа јавне зелене површине и парка - Модул за управљање активностима одржавања - Модул за прикупљање података кроз сензоре о влажности земљишта и метеоролошких услова на микролокалитету - Омогућен приступ подацима у било ком тренутку и слуга хостинга платформе | C123: ком | D123: 1.00 | H123: =D123*G123 -> 0.00
A124: 06.002 | B124: Апликација за комуникацију са грађанством | C124: ком | D124: 1.00 | H124: =D124*G124 -> 0.00
A125: 06.003 | B125: Услуга имплементација и почетно подешавање софтверске платформе и апликације - Иницијално подешавање платформе - Пословна анализа корисничких процеса - Унос радника, радних машина, парцела и радних операција | C125: ком | D125: 1.00 | H125: =D125*G125 -> 0.00
A126: 06.004 | B126: Метео сензори и станица 1. Метео станица произвођача Пессл инструментс нМетос 200 - Метеоролошки сензор за прикупљање података о метеоролошким условима (количина кише, температура и релативна влажност, влажност земљишта...) - Соларни панел са носачем за напајање метеостанице - Комуникациони модул НБ-лоТ/ГПРС са опцијом комуникације преко СИМ картице - стуб за монтажу метео станице са свим грађевинским радовима | C126: ком | D126: 1.00 | H126: =D126*G126 -> 0.00
A127: 06.000 | B127: УКУПНО СОФТВЕР ЗА УПРАВЉАЊЕ ЗЕЛ. ПОВРШИНАМА | E127: =F109+F115 -> 0.00 | F127: =E127*D127 -> 0.00 | H127: =SUM(H123:H126) -> 0.00
A129: 07.000 | B129: УРБАНИ РЕПЕР - ИНФОРМАЦИОНА ПИРАМИДА
A130: 07.001 | B130: Израда, транспорт и монтажа урбаног репера - информационе пирамиде. Пирамида заобљеног врха је од вибрираног бетона са ситним агрегатом у алуминијумској или некој другој глаткој оплати. Слова и бројеви на пирамиди као и кугла са грбом града на врху пирамиде су од бакарног месинга.
B131: Обрачун по комаду, комплет. | C131: ком | D131: 1.00 | H131: =+D131*G131 -> 0.00
A132: 07.000 | B132: УРБАНИ РЕПЕР - ИНФОРМАЦИОНА ПИРАМИДА | E132: =F114+F120 -> 72,766.00 | F132: =E132*D132 -> 0.00 | H132: =H131 -> 0.00
A134: 08.000 | B134: УРБАНА ОПРЕМА
A135: 08.001 | B135: ДРВЕНА КЛУПА СА НАСЛОНОМ Набавка, транспорт и уградња клупе са наслоном. Према каталогу урбане опреме или слична. | E135: =G135/118 -> 0.00 | F135: =E135*D135 -> 0.00
B136: Обрачун по комаду. | C136: ком | D136: 28.00 | E136: =G136/118 -> 0.00 | F136: =E136*D136 -> 0.00 | H136: =+D136*G136 -> 0.00
A137: 08.002 | B137: ДРВЕНА КЛУПА БЕЗ НАСЛОНА Набавка, транспорт и уградња клупе без наслона. Према каталогу урбане опреме или слична. | E137: =G137/118 -> 0.00 | F137: =E137*D137 -> 0.00
B138: Обрачун по комаду. | C138: ком | D138: 7.00 | H138: =+D138*G138 -> 0.00
A139: 08.003 | B139: СОЛАРНА КЛУПА СА СО2 КАЛКУЛАТОРОМ Набавка, транспорт и уградња клупе, минималне снаге 100 -150 W. Према каталогу урбане опреме или слична. | E139: =G139/118 -> 0.00 | F139: =E139*D139 -> 0.00
B140: Обрачун по комаду. | C140: ком | D140: 2.00 | H140: =+D140*G140 -> 0.00
A141: 08.004 | B141: КОРПА ЗА ОТПАТКЕ ЗА МЕШОВИТИ ОТПАД Набавка, транспорт и уградња корпе за мешовити отпад. Према каталогу урбаног мобилијара или слична. | E141: 600.00 | F141: =E141*D141 -> 0.00
B142: Обрачун по комаду. | C142: ком | D142: 15 | E142: 600.00 | F142: 9,000.00 | H142: =D142*G142 -> 0.00
A143: 08.005 | B143: КОРПА ЗА ОТПАТКЕ СА СОРТИРАЊЕМ ЗА РЕЦИКЛАЖУ Набавка, транспорт и уградња корпе за отпатке са сортирањем отпада. Према каталогу урбаног мобилијара или слична. | E143: 600.00 | F143: 0.00
B144: Обрачун по комаду. | C144: ком | D144: 2 | E144: 600.00 | F144: 1,200.00 | H144: =D144*G144 -> 0.00
A145: 08.006 | B145: СЕТ ЗА ШАХ Набавка, транспорт и уградња сета за шах. Према каталогу урбаног мобилијара или сличан. | E145: =G145/118 -> 0.00 | F145: 0.00
B146: Обрачун по комаду, комплет. | C146: ком | D146: 2.00 | E146: =G146/118 -> 0.00 | F146: 0.00 | H146: =+D146*G146 -> 0.00
A147: 08.007 | B147: СТАЛАК ЗА ПАРКИРАЊЕ БИЦИКЛИ Набавка, транспорт и уградња држача за бицикле. Према каталогу урбаног мобилијара или сличан. | E147: 600.00 | F147: 0.00
B148: Обрачун по комаду. | C148: ком | D148: 1 | E148: 600.00 | F148: 600.00 | H148: =D148*G148 -> 0.00
A149: 08.008 | B149: ЧЕСМА Набавка, транспорт и уградња чесме за воду. Према каталогу урбаног мобилијара или слична. | E149: =G149/118 -> 0.00 | F149: 0.00
B150: Обрачун по комаду | C150: ком | D150: 3.00 | E150: =G150/118 -> 0.00 | F150: 0.00 | H150: =+D150*G150 -> 0.00
A151: 08.009 | B151: ДЕКОРАТИВНА ЧЕЛИЧНА ОГРАДА Набавка, транспорт и уградња декоративне челичне ограде уз Главашеву улицу, на постојећи камени зидић. Према каталогу урбаног мобилијара или слична. | E151: =G151/118 -> 0.00 | F151: 0.00
B152: Обрачун по m' . | C152: m' | D152: 140.00 | E152: 600.00 | F152: 84,000.00 | H152: =D152*G152 -> 0.00
A153: 08.010 | B153: ОГРАДА ОКО ДЕЧИЈЕГ ИГРАЛИШТА Набавка, транспорт и уградња ограде око дечијег игралишта,у свему по правилнику о безбедности дечијих игралишта. | E153: =G153/118 -> 0.00 | F153: 0.00
B154: Обрачун по m' . | C154: m' | D154: 50.00 | E154: 600.00 | F154: 30,000.00 | H154: =D154*G154 -> 0.00
A155: 08.011 | B155: ИНФОРМАТИВНА ТАБЛА ДЕЧИЈЕГ ИГРАЛИШТА Набавка, транспорт и уградња инфотабле у оквиру дечијег игралишта,у свему по правилнику о безбедности дечијих игралишта. | E155: =G155/118 -> 0.00 | F155: 0.00
B156: Обрачун по комаду. | C156: ком | D156: 1.00 | E156: 600.00 | F156: 600.00 | H156: =D156*G156 -> 0.00
A157: 08.012 | B157: ЖАРДИЊЕРА БЕЗ ДНА
B158: Набавка материјала и израда жардињера од Ytong блокова: - за темељ зидова жардињере израдити бетонску плочу d = 10 cm са слојем хидроизолације - унутрашње стране жардињере премазати са 2 слоја цементне хидроизолације - на дну жардињере поставити слој шљунка d = 10 и геотекстил - као завршну обраду преко Ytong блокова нанети микроцемент - део за седење у дужини од 150 cm од летвица термотретираног јасена (5 x 3 cm), поставити анкеровањем на хоризонтални део зида
B159: Обрачун по комаду, комплет | C159: ком | D159: 4.00 | E159: =G159/118 -> 0.00 | F159: =E159*D159 -> 0.00 | H159: =+D159*G159 -> 0.00
A161: 08.000 | B161: =+B134 -> УРБАНА ОПРЕМА | F161: =SUM(F141:F155) -> 124,800.00 | H161: =SUM(H135:H160) -> 0.00
A163: 09.000 | B163: TЕРЕТАНА НА ОТВОРЕНОМ
A164: 09.001 | B164: ФИТНЕС СПРАВА - КАРДИО Набавка, транспорт и уградња справе за фитнес - кардио. Према каталогу урбане опреме или слична. | E164: =G164/118 -> 0.00 | F164: =E164*D164 -> 0.00
B165: Обрачун по комаду. | C165: ком | D165: 1.00 | E165: =G165/118 -> 0.00 | F165: =E165*D165 -> 0.00 | H165: =+D165*G165 -> 0.00
A166: 09.002 | B166: ФИТНЕС СПРАВА - КЛУПА ЗА ТРБУШЊАКЕ Набавка, транспорт и уградња справе за фитнес - клупа за трбушњаке. Према каталогу урбане опреме или слична. | E166: =G166/118 -> 0.00 | F166: =E166*D166 -> 0.00
B167: Обрачун по комаду. | C167: ком | D167: 1.00 | H167: =+D167*G167 -> 0.00
A168: 09.003 | B168: ФИТНЕС СПРАВА - ЛАТ МАШИНА Набавка, транспорт и уградња справе за фитнес - ЛАТ машина. Према каталогу урбане опреме или слична. | E168: =G168/118 -> 0.00 | F168: =E168*D168 -> 0.00
B169: Обрачун по комаду. | C169: ком | D169: 1.00 | H169: =+D169*G169 -> 0.00
A170: 09.004 | B170: ФИТНЕС СПРАВА - ХОРИЗОНТАЛНЕ МЕРДЕВИНЕ Набавка, транспорт и уградња справе за фитнес - хоризонталне мердевине. Према каталогу урбане опреме или слична. | E170: 600.00 | F170: =E170*D170 -> 0.00
B171: Обрачун по комаду, комплет | C171: ком | D171: 1.00 | E171: =G171/118 -> 0.00 | F171: =E171*D171 -> 0.00 | H171: =+D171*G171 -> 0.00
A172: 09.005 | B172: КАВЕЗ СА ИНТЕРАКТИВНОМ ИГРОМ НА ОТВОРЕНОМ (FREE CAGE - TIC TAC TOE) Набавка, транспорт и монтажа кавеза за покретним елементима за игру. Према каталогу урбане опреме или слична. | E172: 600.00 | F172: =E172*D172 -> 0.00
B173: Обрачун по комаду, комплет | C173: ком | D173: 1.00 | E173: =G173/118 -> 0.00 | F173: =E173*D173 -> 0.00 | H173: =+D173*G173 -> 0.00
A175: 09.000 | B175: =+B163 -> TЕРЕТАНА НА ОТВОРЕНОМ | F175: =SUM(F153:F167) -> 155,400.00 | H175: =SUM(H165:H174) -> 0.00
B177: РЕКАПИТУЛАЦИЈА
A178: 01.000 | B178: =+B4 -> ПРИПРЕМНИ РАДОВИ | F178: =+F21 -> 0.00 | H178: =H21 -> 0.00
A179: 02.000 | B179: =+B23 -> ЗЕМЉАНИ РАДОВИ | F179: =F34 -> 18,990.00 | H179: =H34 -> 0.00
A180: 03.000 | B180: =B36 -> ОСТАЛИ МАТЕРИЈАЛИ И РАДОВИ | F180: =#REF! ->  | H180: =H60 -> 0.00
A181: 04.000 | B181: =B114 -> САДЊА САДНИЦА | F181: =#REF! ->  | H181: =H114 -> 0.00
A182: 05.000 | B182: =B120 -> ПОДИЗАЊЕ ТРАВЊАКА | F182: =+F161 -> 124,800.00 | H182: =H120 -> 0.00
A183: 06.000 | B183: =B122 -> СОФТВЕР ЗА УПРАВЉАЊЕ ЗЕЛЕНИМ ПОВРШИНАМА | F183: =#REF! ->  | H183: =H127 -> 0.00
A184: 07.000 | B184: =B132 -> УРБАНИ РЕПЕР - ИНФОРМАЦИОНА ПИРАМИДА | F184: =#REF! ->  | H184: =H132 -> 0.00
A185: 08.000 | B185: =B134 -> УРБАНА ОПРЕМА | F185: =#REF! ->  | H185: =H161 -> 0.00
A186: 09.000 | B186: =B163 -> TЕРЕТАНА НА ОТВОРЕНОМ | F186: =#REF! ->  | H186: =H175 -> 0.00
B187: УКУПНО (без ПДВ-а) | H187: =SUBTOTAL(9,H178:H186) -> 0.00

Sheet rekapitulacija svega
A1: REKAPITULACIJA SVIH RADOVA
A3: 1 | B3: SAOBRAĆAJNICA | H3: =Saobraćajnica!F91 -> 0.00
A4: 2 | B4: REKONSTRUKCIJA TEHNICKE PROSTORIJE | H4: ='Teh.pros.'!H40 -> 0.00
A5: 3 | B5: REKONSTRUKCIJA VODOVODNE MREŽE U PARKU | H5: ='Voda u parku'!H61 -> 0.00
A6: 4 | B6: REKONSTRUKCIJA FEKALNE KANALIZACIONE MREŽE U PARKU | H6: ='Fekalna kanalizacija u parku'!H67 -> 0.00
A7: 5 | B7: ZALIVNI SISTEM PARKA | H7: ='Zalivni sistem'!H51 -> 0.00
A8: 6 | B8: ELEKTROENERGETSKE INSTALACIJE | H8: ='EE Instalacije'!F94 -> 0.00
A9: 7 | B9: SPOLJNO UREĐENJE | H9: =Spoljnouredjenje!H187 -> 0.00
B10: UKUPNA VREDNOST RADOVA SVIH PROJEKATA | H10: =SUM(H2:H9) -> 0.00
A12: UKUPNO (bez PDV-a): | H12: =+H10 -> 0.00
B13: PDV:
B14: UKUPNO (sa PDV-om):
